[Event "*** Qualifier 1: Titled Tuesday 3|2 Blitz"]
[Site "Chess.com"]
[Date "2017.04.04"]
[Round "5"]
[White "TenisMaster"]
[Black "SantoBlue"]
[Result "1-0"]
[WhiteElo "2668"]
[BlackElo "2546"]
[TimeControl "180+2"]
[EndTime "14:13:30 PDT"]
[Termination "TenisMaster won by resignation"]

1. e4 {[%clk 0:03:02]} 1... g6 {[%clk 0:02:58.3]} 2. d4 {[%clk 0:03:01.8]} 2...
Bg7 {[%clk 0:02:59.4]} 3. Nc3 {[%clk 0:03:02.5]} 3... d6 {[%clk 0:03:00.2]} 4.
Be3 {[%clk 0:03:02.4]} 4... a6 {[%clk 0:03:01]} 5. Qd2 {[%clk 0:03:02.8]} 5...
Nd7 {[%clk 0:03:01.2]} 6. h4 {[%clk 0:03:03.3]} 6... h6 {[%clk 0:03:01.7]} 7. f4
{[%clk 0:02:56]} 7... h5 {[%clk 0:03:02.7]} 8. Nf3 {[%clk 0:02:55.5]} 8... Ngf6
{[%clk 0:03:02.9]} 9. Bd3 {[%clk 0:02:55.5]} 9... Ng4 {[%clk 0:03:04.1]} 10. e5
{[%clk 0:02:36.9]} 10... Nxe3 {[%clk 0:03:00.8]} 11. Qxe3 {[%clk 0:02:36.9]}
11... e6 {[%clk 0:03:00.7]} 12. d5 {[%clk 0:02:25.1]} 12... Nc5 {[%clk
0:02:58.4]} 13. O-O-O {[%clk 0:02:14]} 13... Nxd3+ {[%clk 0:02:57.7]} 14. Rxd3
{[%clk 0:02:13.6]} 14... O-O {[%clk 0:02:54.5]} 15. Kb1 {[%clk 0:01:42.2]} 15...
exd5 {[%clk 0:02:48.3]} 16. Nxd5 {[%clk 0:01:38]} 16... Bf5 {[%clk 0:02:43.3]}
17. Rd2 {[%clk 0:01:37.3]} 17... Re8 {[%clk 0:02:33.8]} 18. Qc3 {[%clk
0:01:27.4]} 18... c6 {[%clk 0:02:31.9]} 19. Ne3 {[%clk 0:01:14.4]} 19... Be4
{[%clk 0:02:32.7]} 20. Ng5 {[%clk 0:01:12.3]} 20... Bd5 {[%clk 0:01:29.2]} 21.
Nxd5 {[%clk 0:01:11.6]} 21... cxd5 {[%clk 0:01:30.4]} 22. Rxd5 {[%clk
0:01:12.1]} 22... Qb6 {[%clk 0:01:23.7]} 23. Re1 {[%clk 0:00:57]} 23... Rac8
{[%clk 0:01:21.7]} 24. Qd3 {[%clk 0:00:53.8]} 24... Qf2 {[%clk 0:01:08.6]} 25.
Rf1 {[%clk 0:00:43.4]} 25... Qxg2 {[%clk 0:01:09.9]} 26. Rxd6 {[%clk 0:00:41]}
26... Rxc2 {[%clk 0:01:09.6]} 27. Qxc2 {[%clk 0:00:31.7]} 27... Qxf1+ {[%clk
0:01:10.7]} 28. Qc1 {[%clk 0:00:33.1]} 28... Qf2 {[%clk 0:01:04.4]} 29. Rd7
{[%clk 0:00:32.7]} 29... Rf8 {[%clk 0:00:52.3]} 30. a3 {[%clk 0:00:33.1]} 30...
b5 {[%clk 0:00:50.7]} 31. Ka2 {[%clk 0:00:21.3]} 31... Qxh4 {[%clk 0:00:25.1]}
32. Qd2 {[%clk 0:00:22]} 32... Qg4 {[%clk 0:00:24.4]} 33. Qd5 {[%clk 0:00:22.2]}
33... Qf5 {[%clk 0:00:22.1]} 34. Qd4 {[%clk 0:00:10.2]} 34... h4 {[%clk
0:00:22.8]} 35. Rd6 {[%clk 0:00:09.9]} 35... h3 {[%clk 0:00:23.4]} 36. Qf2
{[%clk 0:00:08.8]} 36... a5 {[%clk 0:00:21.6]} 37. Qh4 {[%clk 0:00:09.8]} 37...
Rc8 {[%clk 0:00:19.1]} 38. Qh7+ {[%clk 0:00:10.6]} 38... Kf8 {[%clk 0:00:20.7]}
39. Rf6 {[%clk 0:00:11.1]} 39... Qd7 {[%clk 0:00:08.3]} 40. Rxf7+ {[%clk
0:00:11.9]} 40... Qxf7+ {[%clk 0:00:08.3]} 41. Nxf7 {[%clk 0:00:13.6]} 41...
Kxf7 {[%clk 0:00:09.9]} 42. Qxh3 {[%clk 0:00:14.5]} 42... Rc7 {[%clk 0:00:11.5]}
43. Qf3 {[%clk 0:00:15.3]} 43... g5 {[%clk 0:00:07.4]} 44. Qd5+ {[%clk
0:00:12.8]} 44... Ke8 {[%clk 0:00:06.5]} 45. f5 {[%clk 0:00:12.5]} 45... g4
{[%clk 0:00:05]} 46. f6 {[%clk 0:00:13.4]} 46... Bf8 {[%clk 0:00:06.4]} 47. Qa8+
{[%clk 0:00:12.8]} 47... Kf7 {[%clk 0:00:07.5]} 48. Qd5+ {[%clk 0:00:14.5]}
48... Kg6 {[%clk 0:00:09]} 49. Qe4+ {[%clk 0:00:15.5]} 49... Kf7 {[%clk
0:00:10.3]} 50. Qh7+ {[%clk 0:00:15.9]} 1-0

[Event "*** Qualifier 1: Titled Tuesday 3|2 Blitz"]
[Site "Chess.com"]
[Date "2017.04.04"]
[Round "5"]
[White "korason34"]
[Black "Durarbayli"]
[Result "0-1"]
[WhiteElo "2363"]
[BlackElo "2624"]
[TimeControl "180+2"]
[EndTime "14:13:36 PDT"]
[Termination "Durarbayli won by resignation"]

1. d4 {[%clk 0:03:02]} 1... Nf6 {[%clk 0:02:59.7]} 2. c4 {[%clk 0:03:02.7]} 2...
e6 {[%clk 0:03:00.9]} 3. Nc3 {[%clk 0:03:03.2]} 3... Bb4 {[%clk 0:03:02]} 4. Qc2
{[%clk 0:03:04.1]} 4... d5 {[%clk 0:03:01.6]} 5. Nf3 {[%clk 0:02:59.2]} 5... O-O
{[%clk 0:03:00.7]} 6. Bg5 {[%clk 0:02:58.2]} 6... h6 {[%clk 0:03:00.7]} 7. Bh4
{[%clk 0:02:58]} 7... Be7 {[%clk 0:02:40.3]} 8. e3 {[%clk 0:02:57.1]} 8... Nbd7
{[%clk 0:02:30.2]} 9. cxd5 {[%clk 0:02:47.5]} 9... exd5 {[%clk 0:02:29.6]} 10.
Bd3 {[%clk 0:02:47.7]} 10... c6 {[%clk 0:02:26.9]} 11. O-O {[%clk 0:02:48.4]}
11... Re8 {[%clk 0:02:22.4]} 12. Bg3 {[%clk 0:02:47.9]} 12... Nf8 {[%clk
0:02:21.6]} 13. h3 {[%clk 0:02:48.1]} 13... Bd6 {[%clk 0:02:08.3]} 14. Ne5
{[%clk 0:02:46.2]} 14... Ne6 {[%clk 0:02:01.9]} 15. Rab1 {[%clk 0:02:41.1]}
15... Ng5 {[%clk 0:01:48.2]} 16. b4 {[%clk 0:02:13.4]} 16... a6 {[%clk
0:01:38.2]} 17. a4 {[%clk 0:02:03.6]} 17... Nh5 {[%clk 0:01:38.7]} 18. Bh2
{[%clk 0:02:03.3]} 18... Nxh3+ {[%clk 0:01:36.1]} 19. gxh3 {[%clk 0:01:55.6]}
19... Bxh3 {[%clk 0:01:38]} 20. Kh1 {[%clk 0:01:47.8]} 20... Bxf1 {[%clk
0:01:32.1]} 21. Rxf1 {[%clk 0:01:44]} 21... Qh4 {[%clk 0:01:30.4]} 22. Rg1
{[%clk 0:01:00.4]} 22... Bxe5 {[%clk 0:01:09.3]} 23. dxe5 {[%clk 0:01:02.3]}
23... Rxe5 {[%clk 0:01:10.4]} 24. Ne2 {[%clk 0:01:01.7]} 24... Rg5 {[%clk
0:01:06.6]} 25. Rxg5 {[%clk 0:00:59.5]} 25... hxg5 {[%clk 0:01:08.5]} 26. Nd4
{[%clk 0:00:50.4]} 26... Nf6 {[%clk 0:00:57.8]} 27. Kg2 {[%clk 0:00:28]} 27...
Ne4 {[%clk 0:00:42.8]} 28. Bxe4 {[%clk 0:00:28.1]} 28... dxe4 {[%clk 0:00:36.9]}
29. Bg3 {[%clk 0:00:29.1]} 29... Qg4 {[%clk 0:00:37.7]} 30. Qe2 {[%clk 0:00:29]}
30... Qxe2 {[%clk 0:00:37.4]} 31. Nxe2 {[%clk 0:00:30.9]} 31... a5 {[%clk
0:00:34.8]} 32. b5 {[%clk 0:00:31.7]} 32... cxb5 {[%clk 0:00:36.2]} 33. axb5
{[%clk 0:00:33.6]} 33... a4 {[%clk 0:00:31.7]} 34. Be5 {[%clk 0:00:32.4]} 34...
a3 {[%clk 0:00:31.1]} 35. Ba1 {[%clk 0:00:28.8]} 35... f5 {[%clk 0:00:29.2]} 36.
Kf1 {[%clk 0:00:28]} 36... Kf7 {[%clk 0:00:28.4]} 37. Ke1 {[%clk 0:00:28.9]}
37... Kg6 {[%clk 0:00:28.6]} 38. Kd2 {[%clk 0:00:29.9]} 38... Kh5 {[%clk
0:00:29.8]} 39. Nd4 {[%clk 0:00:30.2]} 39... Kg4 {[%clk 0:00:29.5]} 40. Ne6
{[%clk 0:00:30.2]} 40... g6 {[%clk 0:00:28.1]} 41. Nd4 {[%clk 0:00:30.1]} 41...
Kh3 {[%clk 0:00:23.2]} 42. Ke2 {[%clk 0:00:23.9]} 42... Kg2 {[%clk 0:00:19.3]}
43. Ne6 {[%clk 0:00:22.6]} 43... Rc8 {[%clk 0:00:18.6]} 44. Kd2 {[%clk 0:00:22]}
44... Kxf2 {[%clk 0:00:18.6]} 45. Nxg5 {[%clk 0:00:23.6]} 45... Rd8+ {[%clk
0:00:20.1]} 46. Kc2 {[%clk 0:00:21.4]} 46... Kxe3 {[%clk 0:00:21.6]} 47. Ne6
{[%clk 0:00:22.2]} 47... Rc8+ {[%clk 0:00:23.3]} 48. Kb3 {[%clk 0:00:23.5]}
48... f4 {[%clk 0:00:23.5]} 49. Bd4+ {[%clk 0:00:21.2]} 49... Kd3 {[%clk
0:00:24.4]} 50. Be5 {[%clk 0:00:16.9]} 50... f3 {[%clk 0:00:24.5]} 51. Nf4+
{[%clk 0:00:18.1]} 51... Kd2 {[%clk 0:00:24.3]} 52. Nd5 {[%clk 0:00:18.3]} 52...
f2 {[%clk 0:00:24.2]} 53. Bf4+ {[%clk 0:00:20]} 53... Ke2 {[%clk 0:00:25.1]} 54.
Ne3 {[%clk 0:00:21.6]} 54... Rf8 {[%clk 0:00:25.3]} 55. Bh6 {[%clk 0:00:22.5]}
55... Rf3 {[%clk 0:00:27.2]} 56. Kxa3 {[%clk 0:00:22.6]} 56... Rxe3+ {[%clk
0:00:29.1]} 57. Bxe3 {[%clk 0:00:23.5]} 57... f1=Q {[%clk 0:00:29.8]} 58. Kb4
{[%clk 0:00:25.3]} 58... Kxe3 {[%clk 0:00:30.2]} 0-1

[Event "*** Qualifier 1: Titled Tuesday 3|2 Blitz"]
[Site "Chess.com"]
[Date "2017.04.04"]
[Round "5"]
[White "oggy1984"]
[Black "Zhani-Z"]
[Result "1/2-1/2"]
[WhiteElo "2308"]
[BlackElo "2377"]
[TimeControl "180+2"]
[EndTime "14:14:04 PDT"]
[Termination "Game drawn - insufficient material"]

1. Nf3 {[%clk 0:03:02]} 1... Nf6 {[%clk 0:02:58.5]} 2. c4 {[%clk 0:03:01.5]}
2... e6 {[%clk 0:02:58.5]} 3. Nc3 {[%clk 0:03:02]} 3... c5 {[%clk 0:02:58.5]} 4.
e4 {[%clk 0:02:47]} 4... Nc6 {[%clk 0:02:57.1]} 5. Be2 {[%clk 0:02:47]} 5... d5
{[%clk 0:02:53.7]} 6. exd5 {[%clk 0:02:46.6]} 6... exd5 {[%clk 0:02:54.5]} 7.
cxd5 {[%clk 0:02:47.1]} 7... Nxd5 {[%clk 0:02:54.5]} 8. O-O {[%clk 0:02:41.7]}
8... Be7 {[%clk 0:02:51.1]} 9. d4 {[%clk 0:02:42]} 9... O-O {[%clk 0:02:34.6]}
10. Nxd5 {[%clk 0:02:38.2]} 10... Qxd5 {[%clk 0:02:15.1]} 11. dxc5 {[%clk
0:02:38.3]} 11... Qxc5 {[%clk 0:02:06.4]} 12. Be3 {[%clk 0:02:38.4]} 12... Qf5
{[%clk 0:02:07.5]} 13. Nd4 {[%clk 0:02:15.6]} 13... Nxd4 {[%clk 0:02:07.5]} 14.
Qxd4 {[%clk 0:02:15.9]} 14... Bf6 {[%clk 0:02:07.7]} 15. Qb4 {[%clk 0:02:16.2]}
15... Be6 {[%clk 0:01:30.9]} 16. Bf3 {[%clk 0:02:11.3]} 16... a5 {[%clk
0:01:07.9]} 17. Qb6 {[%clk 0:01:50.1]} 17... Bd5 {[%clk 0:01:06.6]} 18. Bxd5
{[%clk 0:01:46.4]} 18... Qxd5 {[%clk 0:01:07.1]} 19. Rfd1 {[%clk 0:01:44.3]}
19... Qc6 {[%clk 0:01:08]} 20. Qxc6 {[%clk 0:01:40.1]} 20... bxc6 {[%clk
0:01:09.1]} 21. Rac1 {[%clk 0:01:39]} 21... Bxb2 {[%clk 0:01:00.4]} 22. Rxc6
{[%clk 0:01:38.5]} 22... Rfc8 {[%clk 0:00:59.9]} 23. Rxc8+ {[%clk 0:01:21.1]}
23... Rxc8 {[%clk 0:01:00.7]} 24. a4 {[%clk 0:01:14]} 24... f6 {[%clk
0:01:00.9]} 25. Rb1 {[%clk 0:00:34.9]} 25... Ba3 {[%clk 0:00:53.7]} 26. Ra1
{[%clk 0:00:24.8]} 26... Bb4 {[%clk 0:00:44.5]} 27. Kf1 {[%clk 0:00:24.1]} 27...
Rc2 {[%clk 0:00:45.2]} 28. g3 {[%clk 0:00:23.6]} 28... Kf7 {[%clk 0:00:45.5]}
29. Kg2 {[%clk 0:00:23.6]} 29... Ke6 {[%clk 0:00:45.4]} 30. Kf3 {[%clk
0:00:24.4]} 30... f5 {[%clk 0:00:42]} 31. h3 {[%clk 0:00:23.6]} 31... g6 {[%clk
0:00:41.6]} 32. g4 {[%clk 0:00:24.8]} 32... Rc4 {[%clk 0:00:32.9]} 33. Rc1
{[%clk 0:00:21.8]} 33... Rxc1 {[%clk 0:00:22.6]} 34. Bxc1 {[%clk 0:00:23.7]}
34... Kf6 {[%clk 0:00:20.9]} 35. Bb2+ {[%clk 0:00:19.1]} 35... Ke6 {[%clk
0:00:21.7]} 36. Bg7 {[%clk 0:00:18]} 36... Bd6 {[%clk 0:00:22.1]} 37. Bc3 {[%clk
0:00:17.2]} 37... Bc7 {[%clk 0:00:22.7]} 38. gxf5+ {[%clk 0:00:17.1]} 38... Kxf5
{[%clk 0:00:21]} 39. Ke3 {[%clk 0:00:16.8]} 39... Bb6+ {[%clk 0:00:22]} 40. Kf3
{[%clk 0:00:17]} 40... Ke6 {[%clk 0:00:23.2]} 41. Be1 {[%clk 0:00:16.5]} 41...
Kd5 {[%clk 0:00:24.2]} 42. Kg4 {[%clk 0:00:17.3]} 42... h6 {[%clk 0:00:21.9]}
43. Bd2 {[%clk 0:00:16.4]} 43... Kc4 {[%clk 0:00:20.4]} 44. Bxh6 {[%clk
0:00:16.8]} 44... Bxf2 {[%clk 0:00:21.5]} 45. Bd2 {[%clk 0:00:16.3]} 45... Bb6
{[%clk 0:00:20.2]} 46. Kg5 {[%clk 0:00:17.1]} 46... Kb3 {[%clk 0:00:21.3]} 47.
Kxg6 {[%clk 0:00:18]} 47... Kxa4 {[%clk 0:00:22.7]} 48. h4 {[%clk 0:00:18.6]}
48... Bd4 {[%clk 0:00:18.7]} 49. h5 {[%clk 0:00:17.2]} 49... Kb5 {[%clk
0:00:15.8]} 50. Bxa5 {[%clk 0:00:10.7]} 50... Kxa5 {[%clk 0:00:16.3]} 51. h6
{[%clk 0:00:12.1]} 51... Kb5 {[%clk 0:00:17.1]} 52. Kf7 {[%clk 0:00:14]} 52...
Kc6 {[%clk 0:00:18]} 53. Kg8 {[%clk 0:00:15.9]} 53... Kd5 {[%clk 0:00:19]} 54.
h7 {[%clk 0:00:17.8]} 54... Ke6 {[%clk 0:00:20]} 55. h8=Q {[%clk 0:00:19.7]}
55... Bxh8 {[%clk 0:00:21.4]} 1/2-1/2

[Event "*** Qualifier 1: Titled Tuesday 3|2 Blitz"]
[Site "Chess.com"]
[Date "2017.04.04"]
[Round "5"]
[White "biostatistician"]
[Black "Sebastian"]
[Result "0-1"]
[WhiteElo "2469"]
[BlackElo "2618"]
[TimeControl "180+2"]
[EndTime "14:14:07 PDT"]
[Termination "Sebastian won by resignation"]

1. d4 {[%clk 0:03:02]} 1... d5 {[%clk 0:03:00.6]} 2. c4 {[%clk 0:03:01.8]} 2...
dxc4 {[%clk 0:03:01.4]} 3. e3 {[%clk 0:03:02.1]} 3... Nf6 {[%clk 0:03:02]} 4.
Bxc4 {[%clk 0:03:02.9]} 4... e6 {[%clk 0:03:03.9]} 5. Nf3 {[%clk 0:03:02]} 5...
a6 {[%clk 0:03:05.8]} 6. O-O {[%clk 0:03:00.4]} 6... c5 {[%clk 0:03:07.5]} 7. b3
{[%clk 0:02:59.8]} 7... cxd4 {[%clk 0:02:32.4]} 8. Nxd4 {[%clk 0:02:56.6]} 8...
Be7 {[%clk 0:02:33.7]} 9. Bb2 {[%clk 0:02:56.8]} 9... b5 {[%clk 0:02:33.6]} 10.
Be2 {[%clk 0:02:57.3]} 10... O-O {[%clk 0:02:34.1]} 11. Bf3 {[%clk 0:02:57.3]}
11... Ra7 {[%clk 0:02:34.7]} 12. a4 {[%clk 0:02:56.4]} 12... e5 {[%clk 0:02:31]}
13. Nc6 {[%clk 0:02:43.2]} 13... Nxc6 {[%clk 0:02:30.8]} 14. Bxc6 {[%clk
0:02:45.1]} 14... Qc7 {[%clk 0:01:44.5]} 15. axb5 {[%clk 0:02:41.9]} 15... Be6
{[%clk 0:01:43]} 16. Nc3 {[%clk 0:02:30.8]} 16... Rd8 {[%clk 0:01:35.5]} 17. Qc2
{[%clk 0:02:31]} 17... Rc8 {[%clk 0:01:30.3]} 18. Rfc1 {[%clk 0:01:58.7]} 18...
Qb8 {[%clk 0:01:30.7]} 19. Qd1 {[%clk 0:01:49.5]} 19... Bxb3 {[%clk 0:01:07.8]}
20. Qxb3 {[%clk 0:01:28.2]} 20... Rxc6 {[%clk 0:01:08.4]} 21. Nd5 {[%clk
0:01:12.7]} 21... Rxc1+ {[%clk 0:01:07.2]} 22. Rxc1 {[%clk 0:01:11.8]} 22...
axb5 {[%clk 0:00:45.2]} 23. Nxe7+ {[%clk 0:00:21.8]} 23... Rxe7 {[%clk
0:00:44.9]} 24. Rc5 {[%clk 0:00:23.7]} 24... b4 {[%clk 0:00:41.1]} 25. Qc4
{[%clk 0:00:18.3]} 25... Re8 {[%clk 0:00:16.6]} 26. Bxe5 {[%clk 0:00:18]} 26...
Qd8 {[%clk 0:00:15.6]} 27. Bd4 {[%clk 0:00:12.3]} 27... Ne4 {[%clk 0:00:12.7]}
28. Rc7 {[%clk 0:00:11.6]} 28... Nd6 {[%clk 0:00:13.2]} 29. Qc6 {[%clk
0:00:12.7]} 29... Nf5 {[%clk 0:00:13.5]} 30. Rd7 {[%clk 0:00:12.9]} 30... Qa8
{[%clk 0:00:13.7]} 31. Qxa8 {[%clk 0:00:11.9]} 31... Rxa8 {[%clk 0:00:15.6]} 32.
g4 {[%clk 0:00:13.1]} 32... Nxd4 {[%clk 0:00:16]} 33. Rxd4 {[%clk 0:00:14.2]}
33... Rb8 {[%clk 0:00:17.9]} 34. Rd2 {[%clk 0:00:15.2]} 34... Kf8 {[%clk
0:00:18.3]} 35. Kf1 {[%clk 0:00:16.1]} 35... Ke7 {[%clk 0:00:19.4]} 36. Ke2
{[%clk 0:00:17.5]} 36... b3 {[%clk 0:00:20.5]} 37. Rb2 {[%clk 0:00:18.2]} 37...
Ke6 {[%clk 0:00:21.9]} 38. Kd3 {[%clk 0:00:20.1]} 38... Kd5 {[%clk 0:00:22.7]}
39. Kc3 {[%clk 0:00:20.6]} 39... Ke4 {[%clk 0:00:23.5]} 40. Rxb3 {[%clk
0:00:21.2]} 40... Rxb3+ {[%clk 0:00:23.7]} 41. Kxb3 {[%clk 0:00:23.1]} 41... Kf3
{[%clk 0:00:25.1]} 42. Kc4 {[%clk 0:00:21.3]} 42... Kxf2 {[%clk 0:00:26.2]} 43.
e4 {[%clk 0:00:13.2]} 43... Kf3 {[%clk 0:00:27.4]} 44. Kd5 {[%clk 0:00:14.6]}
44... Kxg4 {[%clk 0:00:28.2]} 45. Kd6 {[%clk 0:00:15.3]} 45... Kf4 {[%clk
0:00:13]} 46. Ke7 {[%clk 0:00:15.8]} 46... f6 {[%clk 0:00:13.4]} 47. Kf7 {[%clk
0:00:16.4]} 47... Kxe4 {[%clk 0:00:13.9]} 48. Kxg7 {[%clk 0:00:17.9]} 48... f5
{[%clk 0:00:15.5]} 49. Kxh7 {[%clk 0:00:19.4]} 49... f4 {[%clk 0:00:16.8]} 50.
h4 {[%clk 0:00:20.9]} 50... f3 {[%clk 0:00:18.5]} 51. h5 {[%clk 0:00:22.8]}
51... f2 {[%clk 0:00:20.1]} 52. h6 {[%clk 0:00:24.7]} 52... f1=Q {[%clk
0:00:21.4]} 53. Kg8 {[%clk 0:00:25.6]} 53... Qg2+ {[%clk 0:00:21.8]} 54. Kf7
{[%clk 0:00:26.3]} 54... Qh3 {[%clk 0:00:22]} 55. Kg7 {[%clk 0:00:28.2]} 55...
Qg4+ {[%clk 0:00:22.6]} 56. Kh8 {[%clk 0:00:29.3]} 56... Qc8+ {[%clk 0:00:22.2]}
57. Kg7 {[%clk 0:00:30]} 57... Qd7+ {[%clk 0:00:23]} 58. Kh8 {[%clk 0:00:30.9]}
58... Qe8+ {[%clk 0:00:23.1]} 59. Kg7 {[%clk 0:00:31.7]} 59... Qe7+ {[%clk
0:00:23.9]} 60. Kg8 {[%clk 0:00:32.9]} 60... Qg5+ {[%clk 0:00:21.8]} 61. Kh7
{[%clk 0:00:32.8]} 61... Kf5 {[%clk 0:00:22.1]} 62. Kh8 {[%clk 0:00:34.1]} 62...
Qxh6+ {[%clk 0:00:20.3]} 63. Kg8 {[%clk 0:00:36]} 63... Qg6+ {[%clk 0:00:19.3]}
64. Kh8 {[%clk 0:00:36]} 64... Qg5 {[%clk 0:00:20.2]} 0-1

[Event "*** Qualifier 1: Titled Tuesday 3|2 Blitz"]
[Site "Chess.com"]
[Date "2017.04.04"]
[Round "5"]
[White "penguingm1"]
[Black "gmcorrales"]
[Result "1/2-1/2"]
[WhiteElo "2603"]
[BlackElo "2580"]
[TimeControl "180+2"]
[EndTime "14:14:13 PDT"]
[Termination "Game drawn by agreement"]

1. d4 {[%clk 0:03:02]} 1... Nf6 {[%clk 0:02:56.5]} 2. c4 {[%clk 0:03:02.7]} 2...
e6 {[%clk 0:02:57.6]} 3. Nc3 {[%clk 0:03:04]} 3... Bb4 {[%clk 0:02:58.6]} 4. Qc2
{[%clk 0:03:05.6]} 4... d5 {[%clk 0:02:57.5]} 5. cxd5 {[%clk 0:03:06.5]} 5...
exd5 {[%clk 0:02:59.4]} 6. Bg5 {[%clk 0:03:06.5]} 6... h6 {[%clk 0:02:59.8]} 7.
Bh4 {[%clk 0:03:07.7]} 7... O-O {[%clk 0:02:58.1]} 8. e3 {[%clk 0:03:06.3]} 8...
Nbd7 {[%clk 0:02:59]} 9. Bd3 {[%clk 0:02:58.8]} 9... c5 {[%clk 0:02:59.2]} 10.
Ne2 {[%clk 0:02:54.2]} 10... c4 {[%clk 0:02:57.9]} 11. Bh7+ {[%clk 0:02:39.6]}
11... Kh8 {[%clk 0:02:58.5]} 12. Bf5 {[%clk 0:02:41.2]} 12... Nb6 {[%clk
0:02:59.2]} 13. Bxc8 {[%clk 0:02:38.1]} 13... Rxc8 {[%clk 0:03:01.1]} 14. O-O
{[%clk 0:02:39.3]} 14... Re8 {[%clk 0:02:56.6]} 15. Rae1 {[%clk 0:02:29.5]}
15... Qd6 {[%clk 0:02:42.8]} 16. Ng3 {[%clk 0:02:10.2]} 16... Bxc3 {[%clk
0:02:40.1]} 17. bxc3 {[%clk 0:02:10.1]} 17... Ne4 {[%clk 0:02:40]} 18. Nxe4
{[%clk 0:02:08.7]} 18... Rxe4 {[%clk 0:02:41.9]} 19. Bg3 {[%clk 0:02:08.1]}
19... Qa3 {[%clk 0:02:39.1]} 20. Be5 {[%clk 0:01:45.4]} 20... Na4 {[%clk
0:02:39.6]} 21. f3 {[%clk 0:01:41.7]} 21... Rxe5 {[%clk 0:02:28.2]} 22. dxe5
{[%clk 0:01:36.6]} 22... Nxc3 {[%clk 0:02:29.1]} 23. Rc1 {[%clk 0:01:26]} 23...
Nb5 {[%clk 0:02:29.5]} 24. Qd2 {[%clk 0:01:24.7]} 24... Qc5 {[%clk 0:02:27.5]}
25. Rfd1 {[%clk 0:01:22.4]} 25... Nc7 {[%clk 0:02:25.6]} 26. Qd4 {[%clk
0:01:20.4]} 26... Qxd4 {[%clk 0:02:26.7]} 27. Rxd4 {[%clk 0:01:19.2]} 27... b5
{[%clk 0:02:28.6]} 28. a3 {[%clk 0:01:13.1]} 28... a5 {[%clk 0:02:29.4]} 29. e4
{[%clk 0:01:03.8]} 29... dxe4 {[%clk 0:02:27.6]} 30. Rxe4 {[%clk 0:01:05.7]}
30... Ne6 {[%clk 0:02:17.5]} 31. f4 {[%clk 0:00:55.5]} 31... Nc5 {[%clk
0:02:18.6]} 32. Re3 {[%clk 0:00:56.7]} 32... Rd8 {[%clk 0:02:18.2]} 33. Rc2
{[%clk 0:00:56.2]} 33... g6 {[%clk 0:02:16.5]} 34. Kf2 {[%clk 0:00:56.1]} 34...
Rd4 {[%clk 0:02:17]} 35. g3 {[%clk 0:00:56.7]} 35... Kg8 {[%clk 0:02:16.5]} 36.
Ke2 {[%clk 0:00:57.9]} 36... Nb3 {[%clk 0:02:11.3]} 37. Rec3 {[%clk 0:00:51.6]}
37... a4 {[%clk 0:02:09.4]} 38. Ke3 {[%clk 0:00:45.6]} 38... Rd1 {[%clk
0:02:09.6]} 39. Ke4 {[%clk 0:00:44.5]} 39... Kf8 {[%clk 0:02:07.1]} 40. Rf2
{[%clk 0:00:35.4]} 40... Ke7 {[%clk 0:01:56]} 41. f5 {[%clk 0:00:36.5]} 41...
Nd2+ {[%clk 0:01:41.3]} 42. Kf4 {[%clk 0:00:28.2]} 42... g5+ {[%clk 0:01:29.3]}
43. Ke3 {[%clk 0:00:29.2]} 43... Nb1 {[%clk 0:01:29.3]} 44. Rcc2 {[%clk
0:00:25.6]} 44... Rd3+ {[%clk 0:01:30]} 45. Ke4 {[%clk 0:00:26.1]} 45... Nc3+
{[%clk 0:01:30.1]} 46. Rxc3 {[%clk 0:00:24.7]} 46... Rxc3 {[%clk 0:01:32]} 47.
Rd2 {[%clk 0:00:11.8]} 47... f6 {[%clk 0:01:13.8]} 48. e6 {[%clk 0:00:12.3]}
48... Rxa3 {[%clk 0:01:14.7]} 49. Rd7+ {[%clk 0:00:13.5]} 49... Ke8 {[%clk
0:01:15.9]} 50. Rb7 {[%clk 0:00:13.6]} 50... Ra1 {[%clk 0:01:13.4]} 51. Rxb5
{[%clk 0:00:13.8]} 51... Re1+ {[%clk 0:01:14.2]} 52. Kd4 {[%clk 0:00:14.9]}
52... a3 {[%clk 0:01:06.6]} 53. Ra5 {[%clk 0:00:14.7]} 53... g4 {[%clk
0:01:00.4]} 54. Rxa3 {[%clk 0:00:12.8]} 54... Re5 {[%clk 0:00:59.4]} 55. Ra8+
{[%clk 0:00:13]} 55... Ke7 {[%clk 0:01:00.3]} 56. Ra7+ {[%clk 0:00:14.5]} 56...
Ke8 {[%clk 0:01:01.3]} 57. Rh7 {[%clk 0:00:12.3]} 57... Rxf5 {[%clk 0:01:01.6]}
58. Kxc4 {[%clk 0:00:13.8]} 58... h5 {[%clk 0:01:02.2]} 59. Kd4 {[%clk
0:00:13.5]} 59... Re5 {[%clk 0:01:03.3]} 60. Kd3 {[%clk 0:00:14]} 60... Re1
{[%clk 0:01:02.2]} 61. Kd4 {[%clk 0:00:15]} 61... Re5 {[%clk 0:01:02.7]} 62. e7
{[%clk 0:00:16.1]} 62... Kd7 {[%clk 0:01:01.2]} 63. Rf7 {[%clk 0:00:12.6]} 63...
Re2 {[%clk 0:00:55.1]} 64. Rxf6 {[%clk 0:00:11.3]} 64... Rxh2 {[%clk 0:00:56.2]}
65. Rf7 {[%clk 0:00:12.5]} 65... Ke8 {[%clk 0:00:56.4]} 66. Rh7 {[%clk
0:00:12.5]} 66... Rg2 {[%clk 0:00:50.3]} 67. Ke5 {[%clk 0:00:09.9]} 67... Rxg3
{[%clk 0:00:49.4]} 68. Rxh5 {[%clk 0:00:07.9]} 68... Kxe7 {[%clk 0:00:49.5]} 69.
Kf4 {[%clk 0:00:08.2]} 69... Rg1 {[%clk 0:00:49.2]} 70. Rg5 {[%clk 0:00:09.5]}
1/2-1/2